Cogmind - Beta 13 @@@ ROGUE MODE // 2024.03.06 @ 14:20:20 Player: rCartos Result: Self-destructed Performance ------------- Evolutions (2) 1000 Regions Visited (3) 600 Robots Destroyed (16) 80 Value Destroyed (284) 284 Prototype IDs (0) 0 Alien Tech Used (0) 0 Bonus (0) 0 TOTAL SCORE: 1964 Bonus ------- None Cogmind --------- Core Integrity 487/550 Matter 110/300 Energy 125/125 System Corruption 0% Temperature Cool (0) Movement Flying (40) Location -8/Materials Parts ------- > --- POWER (2) -------- Light Ion Engine > --- PROPULSION (4) --- Flight Unit > --- UTILITY (2) ------ (None) > --- WEAPON (3) ------- (None) > --- INVENTORY (5) ---- (None) Peak State ------------ > --- POWER ------------ Light Ion Engine > --- PROPULSION ------- Flight Unit Flight Unit Flight Unit Flight Unit > --- UTILITY ---------- Shock Absorption System Shock Absorption System > --- WEAPON ----------- Grenade Launcher Grenade Launcher > --- INVENTORY -------- (None) [Rating: 15] Favorites ----------- Power Light Ion Engine Engine Light Ion Engine Propulsion Compact Wheel Wheel Compact Wheel Flight Unit Flight Unit Utility Structural Scanner Device Structural Scanner Weapon Assault Rifle Ballistic Gun Assault Rifle Launcher Grenade Launcher Build | -11 -10 -9 -8 ------- Run | Yrd Mat Mat Mat Slots Evolved 4 | . . 2 2 Power 1 | . . . 1 Propulsion 2 | . . 2 . Utility . | . . . . Weapon 1 | . . . 1 Parts Attached 15 | 5 2 6 2 Power 1 | 1 . . . Engine 1 | 1 . . . Core . | . . . . Reactor . | . . . . Propulsion 6 | 2 . 4 . Treads . | . . . . Leg . | . . . . Wheel 2 | 2 . . . Hover . | . . . . Flight 4 | . . 4 . Utility 4 | . 2 . 2 Device 4 | . 2 . 2 Storage . | . . . . Processor . | . . . . Hackware . | . . . . Protection . | . . . . Artifact . | . . . . Weapon 4 | 2 . 2 . Energy Gun . | . . . . Energy Cannon . | . . . . Ballistic Gun 2 | 2 . . . Ballistic Cannon . | . . . . Launcher 2 | . . 2 . Special Weapon . | . . . . Impact Weapon . | . . . . Slashing Weapon . | . . . . Piercing Weapon . | . . . . Special Melee Weapon . | . . . . Unidentified Prototypes . | . . . . Parts Lost 8 | . . 1 7 Power . | . . . . Propulsion 4 | . . 1 3 Utility 2 | . . . 2 Weapon 2 | . . . 2 Highest Loss Streak 7 | . . 1 7 To Critical Strikes . | . . . . Average Slot Usage (%) 77 | . 78 77 72 Engine 12 | . 14 11 9 Wheel 19 | . 28 17 . Flight 6 | . . 5 32 Device 14 | . 7 22 14 Ballistic Gun 20 | . 28 19 . Launcher 3 | . . 2 16 Naked Turns . | . . . . Heaviest Build 15 | 7 9 11 15 Greatest Support 26 | 26 26 26 16 Greatest Overweight (x) 2 | . . 2 1 Average Overweight (x) . | . . . . Largest Inventory Capacity 5 | 5 5 5 5 Average Capacity 5 | 5 5 5 5 Most Carried . | . . . . Average Carried . | . . . . Final Capacity 5 | 5 5 5 5 Final Carried . | . . . . Class Distribution -------------------- 83% | Mutant 16% | Scavenger-Sprinter Dominant Class ---------------- Mutant | -10/Materials Mutant | -9/Materials Scavenger-Sprinter | -8/Materials Resources | -11 -10 -9 -8 ----------- Run | Yrd Mat Mat Mat Matter Collected 318 | 94 88 50 86 Remotely . | . . . . Salvage Created 246 | . 88 63 95 Parts 26 | . 4 15 7 Haulers Intercepted 1 | . . . 1 Recyclers Shooed . | . . . . Parts Field Recycled . | . . . . Retrieved Matter . | . . . . Parts Self-Destructed . | . . . . Prevented . | . . . . Kills | -11 -10 -9 -8 ------- Run | Yrd Mat Mat Mat Combat Hostiles Destroyed 15 | . 2 7 6 Guns 6 | . 2 4 . AOE 9 | . . 3 6 Classes Destroyed 3 | . 1 1 1 Hauler 1 | . . . 1 Swarmer 11 | . . 7 4 Grunt 4 | . 2 . 2 Best Kill Streak 7 | . 2 3 7 Combat Bots Only 6 | . 2 3 6 Max Kills in Single Turn 4 | . 1 2 4 Gunslinging . | . . . . Exploded 4 | . . 2 4 Melee . | . . . . Uniques/NPCs Destroyed . | . . . . Combat | -11 -10 -9 -8 -------- Run | Yrd Mat Mat Mat Hostile Shots Fired 55 | . 14 22 19 Missed 16 | . 5 5 6 Damage Taken 566 | . 101 214 251 Core 114 | . 24 27 63 Absorbed by Shields . | . . . . Ignored by Resistances 35 | . . . 35 Core Remaining (%) 94 | 100 90 93 . Volleys Fired 19 | . 8 7 4 Largest 2 | . 2 2 2 Hottest 60 | . 40 60 60 Shots Fired 38 | . 16 14 8 Gun 26 | . 16 10 . Cannon . | . . . . Launcher 12 | . . 4 8 Special . | . . . . Kinetic 26 | . 16 10 . Thermal . | . . . . Explosive 12 | . . 4 8 Electromagnetic . | . . . . Robot Hit Streak 4 | . 4 4 3 Robot Miss Streak 3 | . 3 2 1 Penetration Max . | . . . . Secondary Targets 2 | . 1 1 . Max Gunslinging Chain 1 | . 1 1 . Shots Hit Robots 21 | . 11 7 3 Core Hits 18 | . 3 7 8 Critical Kills . | . . . . Critical Parts Destroyed . | . . . . Critical Strikes . | . . . . Melee Attacks . | . . . . Impact . | . . . . Slashing . | . . . . Piercing . | . . . . Sneak Attacks . | . . . . Combat Hostiles . | . . . . Follow-up Attacks . | . . . . Damage Inflicted 924 | . 153 260 511 Guns 214 | . 153 61 . Cannons . | . . . . Explosions 710 | . . 199 511 Melee . | . . . . Ramming . | . . . . Kinetic 214 | . 153 61 . Thermal . | . . . . Explosive 710 | . . 199 511 Electromagnetic . | . . . . Impact . | . . . . Slashing . | . . . . Piercing . | . . . . Highest Corruption . | . . . . Average Corruption . | . . . . Corruption Purged . | . . . . Corruption Blocked . | . . . . Overload Shots . | . . . . Overflow Damage 33 | . . . 33 Projectiles . | . . . . Explosions 33 | . . . 33 Melee . | . . . . Knockbacks . | . . . . Impact . | . . . . Kinetic . | . . . . Secondary . | . . . . Self-Inflicted Damage 157 | . . 59 98 Shots 8 | . . 2 6 Rammed . | . . . . Targets Rammed . | . . . . Kicked . | . . . . Crushed . | . . . . Highest Temperature 31 | . . . 31 Average Temperature 18 | . . . 18 Received Heat Transfer 135 | . 54 9 72 Siege Activations . | . . . . Robots Corrupted . | . . . . Combat Hostiles . | . . . . Parts Fried . | . . . . Impact Corruptions . | . . . . Robots Melted . | . . . . Combat Hostiles . | . . . . Parts Melted . | . . . . Heat Transferred . | . . . . Parts Sabotaged . | . . . . Parts Stolen . | . . . . Parts Stripped . | . . . . Power Chain Reactions . | . . . . Alert | -11 -10 -9 -8 ------- Run | Yrd Mat Mat Mat Peak Influence 319 | . 65 319 287 Initial 134 | . . 27 134 Average 79 | . 39 113 166 Maximum Alert Level 1 | . . 1 1 Low Security (%) 86 | 100 100 73 74 Level 1 13 | . . 26 25 Level 2 . | . . . . Level 3 . | . . . . Level 4 . | . . . . Level 5 . | . . . . High Security . | . . . . Max Security . | . . . . Squads Dispatched 1 | . 1 . . Investigation . | . . . . Extermination . | . . . . Reinforcement 1 | . 1 . . Assault . | . . . . Garrison . | . . . . Intercept . | . . . . Searches Triggered . | . . . . Construction Impeded . | . . . . Haulers Reinforced . | . . . . Active Scanning Responses . | . . . . Cargo Convoy Interrupts . | . . . . Stealth | -11 -10 -9 -8 --------- Run | Yrd Mat Mat Mat Distress Signals 2 | . . 2 . Communications Jammed . | . . . . Distress Signals . | . . . . Times Spotted 26 | . 4 12 10 Peak Tracking Total 8 | . 3 5 8 Tactical Retreats 2 | . . 2 . Traps | -11 -10 -9 -8 ------- Run | Yrd Mat Mat Mat Traps Triggered . | . . . . Indirectly . | . . . . Trap Hack Attempts . | . . . . Triggered . | . . . . Disarmed . | . . . . Reprogrammed . | . . . . Reused . | . . . . Traps Extracted . | . . . . Installed . | . . . . Triggered . | . . . . Machines | -11 -10 -9 -8 ---------- Run | Yrd Mat Mat Mat Machines Disabled 1 | . . 1 . Max in Single Turn 1 | . . 1 . Machines Repaired . | . . . . Machines Dismantled . | . . . . Machines Sabotaged . | . . . . Overloaded Fab Kills . | . . . . Hacking | -11 -10 -9 -8 --------- Run | Yrd Mat Mat Mat Machines Accessed 4 | . 1 3 . Terminals 3 | . 1 2 . Fabricators . | . . . . Repair Stations 1 | . . 1 . Recycling Units . | . . . . Scanalyzers . | . . . . Garrison Access . | . . . . Total Hacks 11 | . 1 10 . Successful 6 | . 1 5 . Failed 5 | . . 5 . Catastrophic . | . . . . Database Lockouts . | . . . . Manual 2 | . . 2 . Terminals 6 | . 1 5 . Fabricators . | . . . . Repair Stations 5 | . . 5 . Recycling Units . | . . . . Scanalyzers . | . . . . Garrison Access . | . . . . Terminal Hacks 4 | . 1 3 . Record 1 | . . 1 . Locate Traps 1 | . . 1 . Assault Status 1 | . . 1 . Zone Layout 1 | . 1 . . Fabricator Hacks . | . . . . Repair Station Hacks 2 | . . 2 . Scan Component 2 | . . 2 . Recycling Unit Hacks . | . . . . Scanalyzer . | . . . . Garrison Access Hacks . | . . . . Unauthorized Hacks . | . . . . Terminals . | . . . . Fabricators . | . . . . Repair Stations . | . . . . Recycling Units . | . . . . Scanalyzers . | . . . . Garrison Access . | . . . . Data Cores Recovered . | . . . . Used . | . . . . Hacking Detections 2 | . . 2 . Full Trace Events 2 | . . 2 . Feedback Events . | . . . . Feedback Blocked . | . . . . Robot Schematics Acquired . | . . . . Robots Built . | . . . . Authchips . | . . . . Time . | . . . . Total Robot Build Rating . | . . . . Part Schematics Acquired . | . . . . Parts Built . | . . . . Authchips . | . . . . Time . | . . . . Total Part Build Rating . | . . . . Parts Repaired . | . . . . Time . | . . . . Parts Recycled . | . . . . Recycled Matter . | . . . . Retrieved Matter . | . . . . Retrieved Components . | . . . . Parts Scanalyzed . | . . . . Part Schematics Acquired . | . . . . Parts Damaged . | . . . . Bothacking | -11 -10 -9 -8 ------------ Run | Yrd Mat Mat Mat Used RIF Installer . | . . . . Robots Hacked . | . . . . Non-combat . | . . . . Combat . | . . . . Robot Hacks Applied . | . . . . Relay Couplers Released . | . . . . Fabnet Peak Effective % . | . . . . Robots Rewired . | . . . . Allies Hacked . | . . . . Hacks Repelled . | . . . . Allies | -11 -10 -9 -8 -------- Run | Yrd Mat Mat Mat Total Allies . | . . . . Largest Group . | . . . . Highest-Rated Group . | . . . . Highest-Rated Ally . | . . . . Total Orders . | . . . . Ally Attacks . | . . . . Total Damage . | . . . . Kills . | . . . . Allies Corrupted . | . . . . Allies Melted . | . . . . Intel | -11 -10 -9 -8 ------- Run | Yrd Mat Mat Mat Robot Analysis Total . | . . . . Derelict Logs Recovered . | . . . . Drone Launches . | . . . . Drone Recoveries . | . . . . Exploration | -11 -10 -9 -8 ------------- Run | Yrd Mat Mat Mat Turns Passed 394 | 42 152 153 47 Spaces Moved 382 | 41 139 153 49 Core 5 | 5 . . . Treads . | . . . . Legs . | . . . . Wheels 293 | 36 139 118 . Hover . | . . . . Flight 84 | . . 35 49 Fastest Speed 31 | 50 90 31 31 Average Speed 78 | 85 90 79 34 Slowest Speed 205 | 100 90 205 120 Overloaded Moves . | . . . . Propulsion Burnouts . | . . . . Robots Hopped 1 | . . . 1 Cave-ins Triggered . | . . . . Exploration Rate (%) 12 | 3 24 17 7 Regions Visited 3 Branch Regions . Pre-discovered Areas . | . . . . Known Exits Taken . | . . . . Unknown Exits Taken 3 | 1 1 1 . Scrap Searched . | . . . . Spaces Dug . | . . . . Terrain Destroyed 54 | . . 13 41 Melee . | . . . . Projectile . | . . . . AOE 54 | . . 13 41 Terrain Rammed . | . . . . Walls Destroyed . | . . . . Machines Disabled . | . . . . Actions | -11 -10 -9 -8 --------- Run | Yrd Mat Mat Mat Total 430 | 45 148 168 69 Wait 13 | . . . 13 Move 377 | 40 138 152 47 Hop 1 | . . . 1 Pick Up . | . . . . Fast Attach 15 | 5 2 6 2 Attach . | . . . . Detach . | . . . . Swap . | . . . . Drop 5 | . . 3 2 Fire 19 | . 8 7 4 Melee . | . . . . Ram . | . . . . Kick . | . . . . Crush . | . . . . Escape Stasis . | . . . . Rewire . | . . . . Trap . | . . . . Miscellaneous . | . . . . Route ------- -11/Scrapyard -10/Materials -9/Materials -8/Materials History --------- Turn | Location | Event 2 | -11/Scrapyard | Met Revision 17 14 | -11/Scrapyard | Discovered new exit (range 13) 43 | -11/Scrapyard | Entered Materials 184 | -10/Materials | Discovered new exit (range 12) 195 | -10/Materials | Entered another Materials area 195 | -9/Materials | Evolved 2 slots: Propulsion x2 299 | -9/Materials | Discovered new exit (range 3) 309 | -9/Materials | Build established: Mutant 348 | -9/Materials | Entered another Materials area 348 | -8/Materials | Evolved 2 slots: Power x1, Weapon x1 395 | -8/Materials | Self-destructed Last Messages --------------- S-10 Pest destroyed. R-06 Scavenger destroyed. The unstable cave ceiling collapses. Acquired 15 matter. The unstable cave ceiling collapses. Flight Unit destroyed. G-47 Trooper destroyed. Flight Unit destroyed. Destroyed Flight Unit. S-10 Pest destroyed. Grenade Launcher destroyed. Destroyed Grenade Launcher. Shock Absorption System destroyed. Destroyed Shock Absorption System. S-10 Pest destroyed. The unstable cave ceiling collapses. Flight Unit destroyed. Acquired 71 matter. Grenade Launcher destroyed. The unstable cave ceiling collapses. Map ----- +----------------------------------------------------+ | ?????????????????????????????????????????????????? | | ?????????????????????????????????????????????????? | | ?????????????????????????????????????????????????? | | ?????????????????????????????????????????????????? | | ?????????????????????????????????????????????????? | | ?????????????????????????????????????????????????? | | ?????????????????????????????????????????????????? | | ?????????????????????????????????????????????????? | | ?????????????????????????????????????????????????? | | ?????????????????????????????????????????????????? | | ?????????????????????????????????????????????????? | | ????????????????????????###??????????????????????? | | ???????????????????????? ??????????????????????? | | ??????????????????????? ??????????????????????? | | ??????????????????????? ??????????????????????? | | ???????????????????????? ??????????????????????? | | ???????????????????????? ??????????????????????? | | ???????????????????????# #?????????????????????? | | ???????????????????????# #?????????????????????? | | ???????????????????????? #?????????????????????? | | ???????????????????????? #?????????????????????? | | ????????????????????????? #?????????????????????? | | ?????????????????????????#g#?????????????????????? | | ????????????????????????##g###???????????????????? | | ??????????????????????### * ##??????????????????? | | ?????????????????????## @ ! ###################+ | | ?????????????????????# # =!= + | | ?????????????????????# ############ | | ?????????????????????## = #??????????# ! | | ??????????????????? % ! #??????????#! | | ???????????????? #??????????######## | | ????????????? w +?????????????????? | | ?????????????? # = # ????????????????? | | ??????????????###?# ## ## # # ????????????????? | | ????????????????? * ? #?"???????????????? | | ???????????????? [% ? +? ??????????????? | | ??????????????? =% ? #?? ??????????????? | | ???????????????#### ###?#+###??????????????????? | | ??????????????????# ???????????????????????????? | | ??????????????????# ???????????????????????????? | | ?????????????????????????????????????????????????? | | ?????????????????????????????????????????????????? | | ?????????????????????????????????????????????????? | | ?????????????????????????????????????????????????? | | ?????????????????????????????????????????????????? | | ?????????????????????????????????????????????????? | | ?????????????????????????????????????????????????? | | ?????????????????????????????????????????????????? | | ?????????????????????????????????????????????????? | | ?????????????????????????????????????????????????? | +----------------------------------------------------+ Best States ------------- Heat Dissipation 31 Energy Generation 10 Energy Capacity 125 Matter Stores 184 Matter Capacity 300 Sight Range 16 Terrain Scan Density 10 Resistance: EX 25 Evasion (%) 63 Item Schematics ----------------- None Robot Schematics ------------------ None Fabricated ------------ Nothing Alien Tech Used ----------------- None Achievements -------------- Loot Pinata Challenges ------------ None Game ------ Seed BladeEtherialDeconstructor Manual? 0 Play Time 00:13:30 Cumulative 3.1 hours Start 2024.03.06 @ 14:08:01 End 2024.03.06 @ 14:20:20 Sessions 1 Manual Loads 0 Difficulty Rogue Special Mode None Game No. 6 Rogue 6 Adventurer 0 Explorer 0 Win Type - Total 0 Types 0/0/0/0/0/0/0/0/0 Lore% 1 Gallery% 6 Achievement% 6 Wizard Run 0 Options --------- Layout 1 ASCII 0 Keyboard 0 Movement Arrows Keybinds 0 Fullscreen 1 Font 32/SmallcapsGlow Map View 25x20 Zoom Use 72% Tactical HUD 0 Map Filters NONE Filters NONE Steam 1 RUN: 4171ae50-6ba7-47b5-a62a-9753b60e4282